bitfinex-derivatives/quotes_BTCF0:USTF0_20241003
["timestamp","ask_amount","ask_price","bid_price","bid_amount"]
[1727996296710,0.00246293,60919.0,60918.0,0.63140526]
[1727996297112,0.00246293,60919.0,60918.0,0.444881]
[1727996297924,0.00246293,60919.0,60918.0,0.084081]
[1727996321234,0.00246293,60919.0,60918.0,0.13320865]
[1727996327034,0.00246293,60919.0,60918.0,0.084081]
[1727996328839,0.00246293,60919.0,60918.0,0.13321049]
[1727996329039,0.00246293,60919.0,60918.0,0.16595077]
[1727996331133,0.00246293,60919.0,60918.0,0.27100697]
[1727996331540,0.36292001,60930.0,60925.0,0.082072]
[1727996331842,0.0038,60933.0,60925.0,1.90549421]
[1727996332035,0.082057,60936.0,60932.0,0.18538697]
[1727996332231,0.082057,60936.0,60933.0,0.06538697]
[1727996332629,0.082057,60936.0,60933.0,0.14744797]
[1727996333243,0.202058,60935.0,60933.0,0.04901099]
[1727996333446,0.08206,60934.0,60933.0,0.05001099]
[1727996333633,0.08206,60934.0,60933.0,0.05101099]
[1727996334037,0.08206,60934.0,60933.0,0.001]
[1727996334329,0.08206,60934.0,60933.0,0.002]
[1727996345338,0.44286,60934.0,60933.0,0.002]
[1727996347238,0.44286,60934.0,60927.0,0.0038]
[1727996347239,0.082068,60928.0,60927.0,0.0038]
[1727996347553,0.082073,60924.0,60920.0,0.0038]
[1727996347744,0.12,60920.0,60919.0,0.082079]
[1727996349246,0.12,60920.0,60916.0,0.3608]
[1727996349448,0.12,60917.0,60916.0,0.3608]
[1727996349746,0.12,60917.0,60916.0,0.3844774]
[1727996351046,0.122,60917.0,60916.0,0.3854774]
[1727996352751,0.124,60917.0,60916.0,0.3854774]
[1727996353146,0.124,60917.0,60916.0,0.0246774]
[1727996355458,0.004,60917.0,60916.0,0.0246774]
[1727996356843,0.004,60917.0,60916.0,0.07367659]
[1727996357247,0.004,60917.0,60916.0,0.0246774]
[1727996357549,0.004,60917.0,60916.0,0.07367596]
[1727996358145,0.004,60917.0,60916.0,0.07367726]
[1727996359143,0.004,60917.0,60916.0,0.0246774]
[1727996364656,0.004,60917.0,60916.0,0.1067614]
[1727996370258,0.004,60917.0,60916.0,0.17214837]
[1727996373162,0.004,60917.0,60916.0,0.1067614]
[1727996374758,0.004,60917.0,60916.0,0.15586714]
[1727996375365,0.004,60917.0,60916.0,0.1067614]
[1727996375966,0.004,60917.0,60916.0,0.15587357]
[1727996376164,0.004,60917.0,60916.0,0.1067614]
[1727996378263,0.004,60917.0,60916.0,0.17223573]
[1727996378761,0.004,60917.0,60916.0,0.2267614]
[1727996378762,0.003,60917.0,60916.0,0.2267614]
[1727996378968,0.0038,60924.0,60923.0,0.082074]
[1727996379261,0.082069,60928.0,60925.0,0.082071]
[1727996379463,0.082069,60928.0,60925.0,0.13121056]
[1727996380358,0.082069,60928.0,60926.0,0.08207]
[1727996380752,0.12,60927.0,60926.0,0.08207]
[1727996381359,0.12,60927.0,60926.0,0.14760664]
[1727996382163,0.12,60927.0,60926.0,0.14860664]
[1727996383189,0.12,60927.0,60926.0,0.14960664]
[1727996384168,0.12,60927.0,60926.0,0.08407]
[1727996385063,0.12,60927.0,60926.0,0.14960664]
[1727996385963,0.12,60927.0,60926.0,0.17315372]
[1727996386161,0.12,60927.0,60926.0,0.10761708]
[1727996396372,0.12,60927.0,60926.0,0.15670187]
[1727996397276,0.12,60927.0,60926.0,0.17315372]
[1727996397666,0.12,60927.0,60926.0,0.09761708]
[1727996398280,0.3608,60929.0,60926.0,0.09761708]
[1727996398487,0.3608,60929.0,60927.0,0.14751974]
[1727996399179,0.3608,60929.0,60928.0,0.06545074]
[1727996400469,0.442866,60929.0,60928.0,0.06645074]
[1727996400880,0.442866,60929.0,60928.0,0.001]
[1727996402292,0.442866,60929.0,60928.0,0.002]
[1727996402976,0.442866,60929.0,60928.0,0.05107455]
[1727996403679,0.442866,60929.0,60928.0,0.002]
[1727996404285,0.442866,60929.0,60928.0,0.05108024]
[1727996404984,0.442866,60929.0,60928.0,0.002]
[1727996405176,0.442866,60929.0,60928.0,0.05108024]
[1727996406580,0.0677,60934.0,60928.0,0.084068]
[1727996406774,0.442856,60937.0,60933.0,0.202061]
[1727996406982,0.442856,60937.0,60933.0,0.26751174]
[1727996407180,0.442856,60937.0,60933.0,0.14751174]
[1727996407684,0.442856,60937.0,60934.0,0.08206]
[1727996407885,0.12,60935.0,60933.0,0.06545074]
[1727996408078,0.12,60935.0,60930.0,0.082065]
[1727996408391,0.444896,60937.0,60931.0,0.06539266]
[1727996408594,0.12,60932.0,60931.0,0.14745566]
[1727996409088,0.12,60935.0,60932.0,0.082062]
[1727996409385,0.36284,60937.0,60933.0,0.001]
[1727996409574,0.12,60934.0,60933.0,0.001]
[1727996409778,0.12,60934.0,60931.0,0.06738911]
[1727996409977,0.082062,60932.0,60931.0,0.002]
[1727996410377,0.082062,60932.0,60931.0,0.05005445]
[1727996410582,0.144962,60932.0,60931.0,0.05005445]
[1727996411285,0.144962,60932.0,60931.0,0.001]
[1727996411990,0.144962,60932.0,60931.0,0.002]
[1727996414183,0.082062,60932.0,60931.0,0.002]
[1727996419398,0.082062,60932.0,60931.0,0.06738911]
[1727996426511,0.082062,60932.0,60931.0,0.002]
[1727996429310,0.082062,60932.0,60931.0,0.051053]
[1727996429504,0.082062,60932.0,60931.0,0.051054]
[1727996429712,0.202062,60932.0,60931.0,0.051054]
[1727996429911,0.202062,60932.0,60931.0,0.0510539]
[1727996430607,0.562862,60932.0,60931.0,0.0510539]
[1727996431905,0.562862,60932.0,60931.0,0.002]
[1727996432106,0.562862,60932.0,60931.0,0.05103511]
[1727996432303,0.442862,60932.0,60931.0,0.05103511]
[1727996432508,0.3608,60932.0,60931.0,0.002]
[1727996432807,0.3608,60932.0,60931.0,0.06738911]
[1727996434307,0.442862,60932.0,60931.0,0.06738911]
[1727996434618,0.442862,60932.0,60931.0,0.002]
[1727996435616,0.0038,60939.0,60931.0,0.49436]
[1727996435914,0.082051,60941.0,60938.0,0.202054]
[1727996436212,0.12,60939.0,60938.0,0.04901414]
[1727996436416,0.202053,60939.0,60937.0,0.11221414]
[1727996436716,0.202053,60939.0,60937.0,0.19426914]
[1727996437511,0.202053,60939.0,60938.0,0.082054]
[1727996438820,0.202053,60939.0,60938.0,0.083054]
[1727996439618,0.202053,60939.0,60938.0,0.084054]
[1727996441314,0.12,60941.0,60940.0,0.08205]
[1727996442519,0.0266121,60945.0,60943.0,0.082047]
[1727996442520,0.12246208,60945.0,60943.0,0.082047]
[1727996442918,0.0038,60950.0,60944.0,1.22448736]
[1727996443113,0.085833,60954.0,60949.0,0.202038]
[1727996443313,0.082033,60954.0,60950.0,0.13092244]
[1727996443722,0.12,60955.0,60950.0,0.04888444]
[1727996443920,0.082029,60957.0,60954.0,0.082033]
[1727996445116,0.082029,60957.0,60954.0,0.083033]
[1727996446024,0.082029,60957.0,60954.0,0.084033]
[1727996446227,0.12,60955.0,60954.0,0.10846662]
[1727996449323,0.3608,60958.0,60954.0,0.02643362]
[1727996449530,0.3608,60958.0,60957.0,0.082029]
[1727996449828,0.4808,60958.0,60957.0,0.082029]
[1727996450128,0.4808,60958.0,60955.0,0.082031]
[1727996450427,0.12,60956.0,60955.0,0.082031]
[1727996452527,0.12,60958.0,60954.0,0.02443362]
[1727996452828,0.0645,60963.0,60961.0,0.082022]
[1727996453013,0.082019,60965.0,60962.0,0.12]
[1727996453217,0.082019,60965.0,60962.0,0.082021]
[1727996454023,0.12,60964.0,60962.0,0.082021]
[1727996454222,0.12,60964.0,60959.0,1.44]
[1727996454423,0.12,60964.0,60963.0,0.082021]
[1727996454716,0.00246099,60966.0,60963.0,0.3608]
[1727996454934,0.0038,60973.0,60972.0,0.082008]
[1727996455231,0.0038,60982.0,60981.0,0.081996]
[1727996455430,0.0308,60988.0,60982.0,0.081995]
[1727996455431,0.081989,60987.0,60982.0,0.081995]
[1727996455632,0.081989,60987.0,60984.0,0.12]
[1727996455820,0.081989,60987.0,60982.0,0.081995]
[1727996456127,0.12,60985.0,60982.0,0.081995]
[1727996456525,0.12,60985.0,60982.0,0.082995]
[1727996457628,0.08199,60986.0,60982.0,0.082995]
[1727996458627,0.08199,60986.0,60982.0,0.083995]
[1727996459137,0.08199,60986.0,60982.0,0.082995]
[1727996459330,0.19,60987.0,60982.0,0.083995]
[1727996460622,0.0306,60990.0,60987.0,0.081988]
[1727996460830,0.3608,60991.0,60990.0,0.081984]
[1727996461233,0.031,60997.0,60990.0,0.19]
[1727996461526,0.00245961,61001.0,60999.0,0.081972]
[1727996461733,0.00245961,61001.0,60995.0,0.081977]
[1727996461929,0.00245961,61001.0,60996.0,1.32]
[1727996462126,0.00245961,61001.0,60996.0,1.401976]
[1727996462328,0.3608,61006.0,61001.0,0.081969]
[1727996462634,0.3608,61006.0,61003.0,0.081967]
[1727996462831,0.3608,61006.0,61003.0,0.19]
[1727996463139,0.3608,61006.0,61004.0,0.081965]
[1727996463327,0.081955,61012.0,61003.0,0.19]
[1727996463529,0.081955,61012.0,61006.0,0.081963]
[1727996463830,0.3608,61013.0,61011.0,0.19]
[1727996464030,0.3608,61013.0,61010.0,0.081956]
[1727996464031,0.3608,61013.0,61005.0,0.081964]
[1727996464237,0.5508,61006.0,60996.0,0.001]
[1727996464533,0.19,60997.0,60996.0,0.001]
[1727996464728,0.081974,60998.0,60996.0,0.001]
[1727996465234,0.081974,60998.0,60989.0,0.081986]
[1727996465434,0.081977,60996.0,60989.0,0.081986]
[1727996465923,0.081977,60996.0,60990.0,0.081984]
[1727996467627,0.0038,61004.0,60995.0,0.19]
[1727996467828,0.0038,61010.0,61003.0,0.19]
[1727996468131,0.3608,61019.0,61009.0,0.19]
[1727996468736,0.3608,61019.0,61011.0,0.081956]
[1727996469237,0.081949,61017.0,61011.0,0.081956]
[1727996471035,0.081949,61017.0,61012.0,0.081955]
[1727996472434,0.081949,61017.0,61012.0,0.082955]
[1727996474233,0.081949,61017.0,61012.0,0.083955]
[1727996475631,0.3608,61019.0,61012.0,0.083955]
[1727996476738,0.081948,61018.0,61012.0,0.083955]
[1727996476943,0.081948,61017.0,61012.0,0.083955]
[1727996477140,0.081948,61018.0,61012.0,0.083955]
[1727996478136,0.081948,61018.0,61013.0,0.081953]
[1727996478343,0.081948,61018.0,61015.0,0.19]
[1727996479040,0.3608,61019.0,61015.0,0.19]
[1727996479935,0.081949,61016.0,61015.0,0.19]
[1727996480530,0.081949,61016.0,61015.0,0.191]
[1727996480738,0.081949,61016.0,61015.0,0.192]
[1727996481133,0.081949,61016.0,61015.0,0.191]
[1727996481333,0.081949,61016.0,61015.0,0.192]
[1727996481536,0.081949,61016.0,61015.0,0.191]
[1727996481743,0.081949,61016.0,61015.0,0.192]
[1727996484443,0.3608,61019.0,61015.0,0.192]
[1727996484643,0.3608,61019.0,61015.0,0.27395]
[1727996486539,0.3608,61019.0,61015.0,0.27295]
[1727996486741,0.3608,61019.0,61015.0,0.27395]
[1727996487138,0.081948,61017.0,61015.0,0.192]
[1727996487741,0.081949,61016.0,61015.0,0.002]
[1727996487940,0.632749,61016.0,61011.0,0.04871139]
[1727996488243,0.632749,61016.0,60997.0,0.10728062]
[1727996488244,0.081956,61011.0,61006.0,0.0038]
[1727996488438,0.081956,61011.0,61000.0,0.16389181]
[1727996488439,0.081966,61004.0,61002.0,0.02730167]
[1727996488640,0.081967,61003.0,60999.0,0.06450481]
[1727996488942,0.081972,60999.0,60998.0,0.06450481]
[1727996489146,0.081972,60999.0,60997.0,0.06450481]
[1727996489645,0.081972,60999.0,60998.0,0.06450481]
[1727996490049,0.081972,60999.0,60997.0,0.06450481]
[1727996490240,0.0308,60998.0,60997.0,0.06450481]
[1727996490442,0.0308,60998.0,60997.0,0.001]
[1727996491341,0.112774,60998.0,60997.0,0.001]
[1727996491541,0.113774,60998.0,60997.0,0.001]
[1727996492049,0.115774,60998.0,60997.0,0.002]
[1727996492245,1.207614,60998.0,60993.0,0.06450481]
[1727996492448,0.19,60996.0,60989.0,0.06450481]
[1727996492651,0.081975,60997.0,60987.0,0.36002287]
[1727996492843,0.081982,60992.0,60987.0,0.33649281]
[1727996493347,0.081982,60992.0,60987.0,0.271988]
[1727996493745,0.081982,60992.0,60987.0,0.272988]
[1727996494352,0.082982,60992.0,60987.0,0.271988]
[1727996495653,0.001,60992.0,60986.0,0.00245924]
[1727996495853,0.081988,60987.0,60986.0,0.00245924]
[1727996496040,0.271988,60987.0,60986.0,0.00245924]
[1727996497753,0.276988,60987.0,60986.0,0.00345924]
[1727996499352,0.086988,60987.0,60986.0,0.00345924]
[1727996499852,0.005,60987.0,60986.0,0.00345924]
[1727996500053,0.005,60987.0,60986.0,0.08544924]
[1727996501147,0.002,60987.0,60986.0,0.08444924]
[1727996501347,0.003,60987.0,60986.0,0.08444924]
[1727996502044,0.003,60987.0,60986.0,0.10832138]
[1727996502856,0.003,60987.0,60986.0,0.08444924]
[1727996503054,0.001,60987.0,60986.0,0.08444924]
[1727996503259,0.003,60987.0,60986.0,0.08544924]
[1727996503469,0.002,60987.0,60986.0,0.08544924]
[1727996503650,0.003,60987.0,60986.0,0.00345924]
[1727996504160,0.003,60987.0,60986.0,0.00245924]
[1727996504752,0.002,60987.0,60986.0,0.00245924]
[1727996504961,0.003,60987.0,60986.0,0.00345924]
[1727996506865,0.084988,60987.0,60986.0,0.00345924]
[1727996507760,0.117788,60987.0,60986.0,0.00345924]
[1727996508661,0.478588,60987.0,60986.0,0.00345924]
[1727996508859,1.570508,60987.0,60986.0,0.00345924]
[1727996509061,0.081998,60980.0,60979.0,0.0038]
[1727996509259,0.082007,60973.0,60972.0,0.0038]
[1727996509455,0.19,60973.0,60967.0,0.02439537]
[1727996509661,0.19,60973.0,60963.0,0.08202]
[1727996509662,0.19,60969.0,60963.0,0.08202]
[1727996509863,0.19,60969.0,60959.0,0.14653081]
[1727996510059,0.19,60969.0,60959.0,0.10652728]
[1727996510570,0.19,60961.0,60958.0,0.0038]
[1727996510775,0.08203,60956.0,60955.0,0.00246039]
[1727996511073,0.27203,60956.0,60955.0,0.00246039]
[1727996511662,0.082039,60950.0,60947.0,0.0038]
[1727996511865,0.0038,60957.0,60947.0,0.19]
[1727996512167,0.082031,60956.0,60951.0,0.19]
[1727996512668,0.068031,60956.0,60951.0,0.19]
[1727996512871,0.033,60958.0,60947.0,0.19]
[1727996513167,0.082036,60952.0,60943.0,0.275847]
[1727996513370,0.082036,60952.0,60951.0,0.001]
[1727996513969,0.092031,60956.0,60951.0,0.001]
[1727996514263,0.082033,60955.0,60947.0,0.272041]
[1727996514966,0.082033,60955.0,60949.0,0.082039]
[1727996515261,0.082033,60955.0,60951.0,0.19]
[1727996515665,0.009,60952.0,60951.0,0.19]
[1727996516262,0.009,60952.0,60946.0,0.19]
[1727996516460,0.009,60952.0,60950.0,0.272037]
[1727996516766,0.017,60952.0,60950.0,0.272037]
[1727996516968,0.008,60952.0,60950.0,0.272037]
[1727996517268,0.008,60952.0,60951.0,1.402037]
[1727996517460,0.009,60955.0,60951.0,0.082037]
[1727996517661,0.003,60952.0,60951.0,0.082037]
[1727996518067,0.009,60955.0,60951.0,0.082037]
[1727996518374,0.003,60952.0,60951.0,0.082037]
[1727996518668,0.012,60952.0,60951.0,0.082037]
[1727996519367,0.003,60952.0,60951.0,0.082037]
[1727996519672,0.01,60952.0,60951.0,0.082037]
[1727996520377,0.008,60952.0,60951.0,0.082037]
[1727996521081,0.009,60952.0,60951.0,0.082037]
[1727996521575,0.0038,60959.0,60958.0,0.082027]
[1727996521765,0.082019,60964.0,60957.0,0.3608]
[1727996521961,0.0038,60969.0,60964.0,0.082019]
[1727996522173,0.082014,60968.0,60964.0,0.082019]
[1727996522467,0.0319,60972.0,60964.0,0.082019]
[1727996522674,0.082017,60966.0,60964.0,0.082019]
[1727996523375,0.082021,60963.0,60960.0,0.19]
[1727996524769,0.085021,60963.0,60960.0,0.19]
[1727996525081,0.085021,60963.0,60960.0,0.272024]
[1727996525484,0.003,60963.0,60961.0,0.082023]
[1727996525783,0.003,60963.0,60960.0,0.19]
[1727996525784,0.003,60963.0,60962.0,0.082022]
[1727996526478,0.007,60963.0,60962.0,0.082022]
[1727996527179,0.007,60963.0,60962.0,0.083022]
[1727996527180,0.009,60963.0,60962.0,0.083022]
[1727996529572,0.003,60963.0,60962.0,0.082022]
[1727996529871,0.008,60963.0,60962.0,0.082022]
[1727996530282,0.01,60963.0,60962.0,0.083022]
[1727996530878,0.006,60963.0,60962.0,0.083022]
[1727996531078,0.008,60963.0,60962.0,0.082022]
[1727996531383,0.009,60963.0,60962.0,0.082022]
[1727996532885,0.08202,60964.0,60962.0,0.082022]
[1727996533183,0.012,60963.0,60962.0,0.083022]
[1727996533601,0.094021,60963.0,60962.0,0.001]
[1727996533983,0.089021,60963.0,60962.0,0.001]
[1727996534281,0.2232,60966.0,60958.0,0.42530481]
[1727996534282,0.082026,60959.0,60958.0,0.42530481]
[1727996535082,0.082029,60957.0,60956.0,0.06450481]
[1727996535284,0.082029,60957.0,60953.0,0.10562249]
[1727996535285,0.082032,60955.0,60953.0,0.02370168]
[1727996535481,0.19,60954.0,60946.0,0.08192081]
[1727996535791,0.082041,60948.0,60947.0,0.0651883]
[1727996536179,0.19,60950.0,60945.0,0.08192081]
[1727996536379,0.082043,60947.0,60944.0,0.08192081]
[1727996536690,0.19,60950.0,60944.0,0.08192081]
[1727996536892,0.082042,60947.0,60946.0,0.009]
[1727996537281,0.082042,60947.0,60945.0,0.009]
[1727996537590,0.073042,60947.0,60945.0,0.009]
[1727996537779,0.073042,60947.0,60943.0,0.08192081]
[1727996537780,0.082043,60946.0,60942.0,0.10625813]
[1727996537983,0.082045,60945.0,60944.0,0.009]
[1727996538782,0.082045,60945.0,60944.0,0.07429439]
[1727996539098,0.082045,60945.0,60944.0,0.07430932]
[1727996539396,0.071045,60945.0,60944.0,0.06531202]
[1727996539594,0.082046,60944.0,60943.0,0.06531202]
[1727996540191,0.071046,60944.0,60943.0,0.06531202]
[1727996540393,0.082047,60943.0,60942.0,0.06531202]
[1727996541191,0.073047,60943.0,60942.0,0.06531202]
[1727996542386,0.073047,60943.0,60938.0,0.082054]
[1727996542387,0.073047,60943.0,60941.0,0.06531202]
[1727996542986,0.082049,60942.0,60941.0,0.06531202]
[1727996544094,0.08205,60941.0,60939.0,0.25531202]
[1727996544395,0.19,60941.0,60937.0,0.06531202]
[1727996544592,0.082054,60938.0,60937.0,0.06525568]
[1727996544791,0.082054,60938.0,60932.0,0.63736081]
[1727996544792,0.082054,60938.0,60936.0,0.06525568]
[1727996544991,0.0642,60940.0,60936.0,0.06525568]
[1727996544992,0.082056,60937.0,60936.0,0.06525568]
[1727996545198,0.082056,60937.0,60934.0,0.0267867]
[1727996545493,0.082056,60937.0,60936.0,0.06523761]
[1727996545893,0.082057,60936.0,60935.0,0.06523761]
[1727996546099,0.082058,60935.0,60934.0,0.00246089]
[1727996548099,0.083058,60935.0,60934.0,0.00246089]
[1727996548694,0.10719576,60935.0,60934.0,0.00246089]
[1727996549795,0.10819576,60935.0,60934.0,0.00246089]
[1727996550193,0.82979576,60935.0,60934.0,0.00246089]
[1727996551797,0.08206,60934.0,60928.0,0.0038]
[1727996551999,0.082072,60925.0,60924.0,0.0038]
[1727996552199,0.082077,60922.0,60920.0,0.00084]
[1727996552499,0.55284,60925.0,60917.0,0.06522961]
[1727996552696,0.19,60920.0,60917.0,0.06522961]
[1727996552900,0.082083,60917.0,60915.0,0.02355579]
[1727996553112,0.19,60916.0,60912.0,0.06522961]
[1727996553395,0.19,60916.0,60909.0,0.00626258]
[1727996553396,0.082092,60910.0,60909.0,0.00626258]
[1727996553603,0.272092,60910.0,60909.0,0.00246258]
[1727996554294,0.082092,60910.0,60909.0,0.00246258]
[1727996555701,0.083092,60910.0,60909.0,0.00246258]
[1727996555902,0.084092,60910.0,60909.0,0.00246258]
[1727996557902,0.082101,60903.0,60902.0,0.0038]
[1727996558096,0.082103,60902.0,60895.0,1.3238]
[1727996558301,0.082103,60902.0,60895.0,1.32]
[1727996558801,0.082105,60901.0,60895.0,1.32]
[1727996559497,0.191,60903.0,60892.0,0.06893931]
[1727996559498,0.272111,60896.0,60892.0,0.0038]
[1727996559706,0.22281764,60896.0,60891.0,0.0641]
[1727996559899,0.19,60892.0,60887.0,0.00246315]
[1727996560098,0.001,60903.0,60887.0,0.00246315]
[1727996560099,0.272118,60891.0,60887.0,0.00246315]
[1727996560299,0.3608,60888.0,60887.0,0.00246315]
[1727996561295,0.5508,60888.0,60887.0,0.00246315]
[1727996562613,0.082128,60884.0,60881.0,0.0038]
[1727996562809,0.19,60883.0,60877.0,0.0038]
[1727996563105,0.082137,60877.0,60874.0,0.00464]
[1727996563307,0.272137,60877.0,60872.0,0.05654192]
[1727996564304,0.273137,60877.0,60872.0,0.05654192]
[1727996564499,0.001,60877.0,60872.0,0.05654192]
[1727996564699,0.001,60877.0,60873.0,0.19]
[1727996564907,0.001,60877.0,60875.0,0.082139]
[1727996565105,0.001,60877.0,60876.0,0.082138]
[1727996565606,0.0038,60883.0,60880.0,0.082131]
[1727996565810,0.082123,60887.0,60882.0,0.19]
[1727996566210,0.3608,60888.0,60886.0,0.19]
[1727996566910,0.3608,60888.0,60887.0,0.112423]
[1727996567112,0.3608,60888.0,60887.0,0.143523]
[1727996567615,0.3618,60888.0,60887.0,0.143523]
[1727996568613,0.3618,60888.0,60887.0,0.0614]
[1727996568808,0.443922,60888.0,60887.0,0.0614]
[1727996569116,0.444922,60888.0,60887.0,0.0614]
[1727996569611,0.443922,60888.0,60887.0,0.0614]
[1727996569823,0.444922,60888.0,60887.0,0.0614]
[1727996571121,0.002,60888.0,60887.0,0.0614]
[1727996571320,0.002,60888.0,60887.0,0.333523]
[1727996572415,0.0038,60894.0,60889.0,0.08212]
[1727996573823,0.00346414,60890.0,60889.0,0.08212]
[1727996574435,0.00346414,60890.0,60889.0,0.27510018]
[1727996575430,0.00346414,60890.0,60889.0,0.19317937]
[1727996576423,0.001,60890.0,60889.0,0.19317937]
[1727996577009,0.0038,60894.0,60893.0,0.082115]
[1727996577228,0.0038,60900.0,60899.0,0.082107]
[1727996577518,0.082102,60903.0,60899.0,1.402107]
[1727996577714,0.082102,60903.0,60901.0,0.06510911]
[1727996577914,0.082102,60903.0,60901.0,0.14721311]
[1727996578423,0.30329403,60902.0,60901.0,0.082104]
[1727996579327,0.31129403,60902.0,60901.0,0.082104]
[1727996579825,0.009,60902.0,60901.0,0.082104]
[1727996580120,0.014,60902.0,60899.0,0.08139049]
[1727996580329,0.082107,60899.0,60898.0,1.32]
[1727996580515,0.082107,60899.0,60898.0,0.1105169]
[1727996580921,0.082107,60899.0,60898.0,0.19204226]
[1727996581520,0.082107,60899.0,60898.0,0.1105169]
[1727996582214,0.082107,60899.0,60898.0,0.20813853]
[1727996582418,0.19,60900.0,60898.0,0.20813853]
[1727996582628,0.19,60900.0,60899.0,0.1105169]
[1727996583723,0.006,60900.0,60899.0,0.1105169]
[1727996584022,0.006,60900.0,60899.0,0.29024353]
[1727996584229,0.013,60900.0,60899.0,0.29024353]
[1727996584822,0.013,60900.0,60899.0,0.32402645]
[1727996586026,0.095105,60900.0,60899.0,0.24192145]
[1727996586224,0.095105,60900.0,60899.0,0.1105169]
[1727996586621,0.095105,60900.0,60899.0,0.19224002]
[1727996587223,0.587705,60900.0,60899.0,0.08172312]
[1727996587428,0.082108,60898.0,60894.0,0.09803179]
[1727996587630,0.19,60896.0,60895.0,0.11059625]
[1727996588329,0.14671,60897.0,60895.0,0.20862804]
[1727996588531,0.14671,60897.0,60896.0,0.11059625]
[1727996589527,0.15071,60897.0,60896.0,0.11059625]
[1727996589923,0.15371,60897.0,60896.0,0.11059625]
[1727996593825,0.51451,60897.0,60896.0,0.11059625]
[1727996595238,0.51451,60897.0,60896.0,0.20862804]
[1727996597237,0.51451,60897.0,60896.0,0.11059625]
[1727996597935,0.51451,60897.0,60896.0,0.20883309]
[1727996598134,0.51451,60897.0,60896.0,0.09823684]
[1727996598326,0.3678,60897.0,60896.0,0.20899695]
[1727996598533,0.3678,60897.0,60896.0,0.51476744]
[1727996599036,0.007,60897.0,60896.0,0.51476744]
[1727996599231,0.3608,60903.0,60896.0,0.61679244]
[1727996599432,0.3608,60903.0,60899.0,0.11458559]
[1727996599633,0.3608,60903.0,60900.0,0.24265644]
[1727996599828,0.3608,60903.0,60901.0,0.24265644]
[1727996600039,0.3608,60903.0,60902.0,0.24265644]
[1727996600438,0.442901,60903.0,60902.0,0.24265644]
[1727996600645,0.442901,60903.0,60902.0,0.20896937]
[1727996600939,0.442901,60903.0,60902.0,0.11075505]
[1727996601547,0.3638,60903.0,60902.0,0.11075505]
[1727996601837,0.3638,60903.0,60902.0,0.19285805]
[1727996602239,0.647901,60903.0,60902.0,0.11075505]
[1727996602838,0.650901,60903.0,60902.0,0.11075505]
[1727996603243,0.648901,60903.0,60902.0,0.11175505]
[1727996603443,0.648901,60903.0,60902.0,0.001]
[1727996605046,0.082103,60902.0,60901.0,0.08184703]
[1727996606237,0.090103,60902.0,60901.0,0.08184703]
[1727996606431,0.098103,60902.0,60901.0,0.08184703]
[1727996606633,0.098103,60902.0,60901.0,0.19260179]
[1727996606836,0.098103,60902.0,60901.0,0.08184703]
[1727996607034,0.098103,60902.0,60901.0,0.08191823]
[1727996607235,0.098103,60902.0,60900.0,0.08191823]
[1727996607440,0.304804,60901.0,60900.0,0.08191823]
[1727996607632,0.304804,60901.0,60900.0,0.19270103]
[1727996609348,0.311804,60901.0,60900.0,0.19270103]
[1727996610239,0.318804,60901.0,60900.0,0.19270103]
[1727996610947,0.318804,60901.0,60900.0,0.19269346]
[1727996612946,0.286104,60901.0,60900.0,0.19269346]
[1727996614345,0.096104,60901.0,60900.0,0.11077523]
[1727996615453,0.286104,60901.0,60900.0,0.20897953]
[1727996615642,0.286104,60901.0,60900.0,0.11077523]
[1727996616552,0.082105,60900.0,60899.0,0.08186194]
[1727996616748,0.2208,60900.0,60899.0,0.08185807]
[1727996616944,0.302905,60900.0,60899.0,0.19256122]
[1727996617343,0.302905,60900.0,60899.0,0.11070315]
[1727996617551,0.302905,60900.0,60899.0,0.19255762]
[1727996618053,0.308905,60900.0,60899.0,0.19255762]
[1727996618553,0.314905,60900.0,60899.0,0.19255762]
[1727996619753,0.675705,60900.0,60899.0,0.19255762]
[1727996619949,0.644905,60900.0,60899.0,0.19255762]
[1727996620155,0.3728,60900.0,60899.0,0.11070315]
[1727996620355,0.644905,60900.0,60899.0,0.20890745]
[1727996620545,0.644905,60900.0,60899.0,0.11070315]
[1727996621142,0.644905,60900.0,60899.0,0.20890745]
[1727996621743,0.5628,60900.0,60899.0,0.20890745]
[1727996622152,0.3728,60900.0,60899.0,0.19281015]
[1727996622650,0.31529288,60900.0,60899.0,0.32453247]
[1727996623349,0.082096,60907.0,60904.0,0.0821]
[1727996623661,0.082096,60907.0,60905.0,0.14250315]
[1727996623847,0.082096,60907.0,60906.0,0.11070315]
[1727996624550,0.082096,60907.0,60906.0,0.082097]
[1727996624551,0.011,60907.0,60906.0,0.082097]
[1727996624755,0.022,60907.0,60906.0,0.22355589]
[1727996625050,0.022,60907.0,60906.0,0.38446226]
[1727996625258,0.011,60907.0,60906.0,0.38446226]
[1727996625462,0.024,60907.0,60906.0,0.25375589]
[1727996625757,0.024,60907.0,60906.0,0.35187969]
[1727996625958,0.024,60907.0,60906.0,0.25375589]
[1727996626152,0.024,60907.0,60906.0,0.35187922]
[1727996626348,0.023,60907.0,60906.0,0.3528743]
[1727996626547,0.3608,60911.0,60906.0,0.30330149]
[1727996626751,0.3608,60911.0,60908.0,0.082094]
[1727996626951,0.3608,60911.0,60909.0,0.10985889]
[1727996626952,0.442891,60911.0,60909.0,0.10985889]
[1727996627156,0.442891,60911.0,60910.0,0.10985889]
[1727996628152,0.442891,60911.0,60910.0,0.19115029]
[1727996628153,0.456891,60911.0,60910.0,0.19115029]